fUST/lending_fUST_20250225
["ID","MTS","AMOUNT","RATE_DAILY","PERIOD"]
[354363930,1740446989233,-500.0,0.00082191,120]
[354363931,1740446989260,-500.0,0.00082191,120]
[354363932,1740446989288,-500.0,0.00082191,120]
[354363933,1740446989315,-500.0,0.00082191,120]
[354363934,1740446989344,-500.0,0.00082191,120]
[354363935,1740446989372,-500.0,0.00082191,120]
[354363936,1740446989403,-500.0,0.00082191,120]
[354363937,1740446989430,-500.0,0.00082191,120]
[354363938,1740446989455,-500.0,0.00082191,120]
[354363939,1740446989480,-500.0,0.00082191,120]
[354363940,1740446989506,-500.0,0.00082191,120]
[354363941,1740446989533,-500.0,0.00082191,120]
[354363942,1740446989559,-500.0,0.00082191,120]
[354363943,1740446989586,-500.0,0.00082191,120]
[354363944,1740446989612,-500.0,0.00082191,120]
[354363945,1740446989638,-555.05672752,0.00082191,120]
[354363946,1740446989663,-5000.0,0.001,7]
[354363947,1740446989690,-500.0,0.001,120]
[354363948,1740446989716,-1000.0,0.001,120]
[354363949,1740446989762,608.0,0.00054794,120]
[354363973,1740447032132,-500.0,0.00054794,120]
[354363975,1740447032142,-22.62975828,0.001,120]
[354363977,1740447032156,-139.55781378,0.001,120]
[354363978,1740447032166,-500.0,0.00109338,7]
[354363979,1740447032175,-2200.0,0.001145,120]
[354363980,1740447032184,-500.0,0.001145,30]
[354363981,1740447032194,-350.923,0.00123508,120]
[354363982,1740447032203,-531.787,0.00123508,120]
[354363983,1740447032212,-2287.0,0.00123508,120]
[354363984,1740447032222,-2626.8,0.0012755,99]
[354363985,1740447032232,-500.0,0.00133164,120]
[354363986,1740447032242,-12286.0804718,0.00136976,26]
[354363987,1740447032251,-203.55775264,0.00136976,26]
[354363988,1740447032261,-10000.0,0.002,120]
[354363989,1740447032270,-499.9999,0.002,120]
[354363990,1740447032280,-1809.3344,0.00201,92]
[354363991,1740447032291,-1162.7,0.0025695,110]
[354363992,1740447032300,-500.0,0.00273972,120]
[354363993,1740447032310,-354.47634894,0.00273972,120]
[354363994,1740447032319,-500.0,0.00273972,120]
[354363995,1740447032329,-500.0,0.00273972,120]
[354363996,1740447032339,-500.0,0.00273972,120]
[354363997,1740447032349,-500.0,0.00273972,120]
[354363998,1740447032359,-561.2651732,0.00273972,120]
[354363999,1740447032370,-151.0,0.00273973,120]
[354364000,1740447032381,-151.0,0.00273973,120]
[354364001,1740447032391,-151.0,0.00273973,120]
[354364002,1740447032401,-151.0,0.00273973,120]
[354364003,1740447032410,-151.0,0.00273973,120]
[354364004,1740447032420,-151.0,0.00273973,120]
[354364005,1740447032430,-151.0,0.00273973,120]
[354364006,1740447032439,-151.0,0.00273973,120]
[354364007,1740447032449,-151.0,0.00273973,120]
[354364008,1740447032470,-151.0,0.00273973,120]
[354364009,1740447032480,-151.0,0.00273973,120]
[354364010,1740447032491,-158.737437,0.00273973,120]
[354364011,1740447032501,-151.0,0.00273973,120]
[354364012,1740447032511,-151.0,0.00273973,120]
[354364013,1740447032521,-151.0,0.00273973,120]
[354364014,1740447032531,-151.0,0.00273973,120]
[354364015,1740447032541,-283.60122,0.00273973,120]
[354364016,1740447032551,-307.5475,0.00273973,120]
[354364017,1740447032561,-307.5475,0.00273973,120]
[354364018,1740447032571,-307.5475,0.00273973,120]
[354364019,1740447032581,-307.5475,0.00273973,120]
[354364020,1740447032590,-307.5475,0.00273973,120]
[354364021,1740447032600,-307.5475,0.00273973,120]
[354364022,1740447032609,-307.5475,0.00273973,120]
[354364023,1740447032621,-307.5475,0.00273973,120]
[354364024,1740447032630,-307.5475,0.00273973,120]
[354364025,1740447032639,-307.5475,0.00273973,120]
[354364026,1740447032649,-307.5475,0.00273973,120]
[354364027,1740447032659,-307.5475,0.00273973,120]
[354364028,1740447032668,-307.5475,0.00273973,120]
[354364029,1740447032678,-307.5475,0.00273973,120]
[354364030,1740447032688,-307.5475,0.00273973,120]
[354364031,1740447032697,-307.5475,0.00273973,120]
[354364032,1740447032707,-307.5475,0.00273973,120]
[354364033,1740447032716,-307.5475,0.00273973,120]
[354364034,1740447032726,-307.5475,0.00273973,120]
[354364035,1740447032735,-307.5475,0.00273973,120]
[354364036,1740447032745,-3000.0,0.002999,120]
[354364037,1740447032755,-1363.87237,0.002999,120]
[354364038,1740447032765,-6819.77100708,0.00299989,90]
[354364039,1740447032779,-461.4225,0.00299989,90]
[354364040,1740447032807,-500.39489478,0.00055068,120]
[354364041,1740447032819,-5004.88696472,0.00299989,90]
[354364042,1740447032829,-203.55775264,0.00299989,90]
[354364043,1740447032838,-10000.0,0.003,120]
[354364044,1740447032849,-2035.50339505,0.0030998,90]
[354364052,1740447037950,-874.22166887,0.0030998,90]
[354364054,1740447037962,-891.85929846,0.0030998,90]
[354364055,1740447037974,-500.0,0.0030998,90]
[354364056,1740447037987,-1523.5859952,0.0030998,90]
[354364057,1740447038036,-1525.0,0.0030998,90]
[354364058,1740447038048,-1465.725,0.0030998,90]
[354364059,1740447038060,-3470.18511422,0.0030998,90]
[354364060,1740447038069,-203.55775264,0.0030998,90]
[354364061,1740447038079,-2693.48136292,0.0031,120]
[354364062,1740447038089,-500.0,0.00314316,120]
[354364063,1740447038098,-500.0,0.00314864,120]
[354364064,1740447038108,-1770.77577022,0.0035,112]
[354364065,1740447038124,-1118.02597978,0.0035,112]
[354364066,1740447038134,-341.4550636,0.00380637,120]
[354364067,1740447038144,-2181.0,0.004,120]
[354364068,1740447038154,-1417.0,0.004,87]
[354364069,1740447038164,-140.29342927,0.004,120]
[354364073,1740447040185,-310.236833,0.00016432,4]
[354364074,1740447040196,-212.66472501,0.00054794,120]
[354364075,1740447040206,-418.41744195,0.004,120]
[354364076,1740447040281,-1441.28912878,0.004,120]
[354364078,1740447040295,-8807.30670087,0.004,120]
[354364079,1740447040305,-3276.8,0.00419373,86]
[354364080,1740447040315,-349.0,0.00422931,120]
[354364081,1740447040325,-349.0,0.00422931,120]
[354364082,1740447040334,-349.0,0.00422931,120]
[354364083,1740447040344,-349.0,0.00422931,120]
[354364084,1740447040354,-349.0,0.00422931,120]
[354364085,1740447040364,-349.0,0.00422931,120]
[354364086,1740447040375,-349.0,0.00422931,120]
[354364087,1740447040384,-489.01,0.00422931,120]
[354364088,1740447040394,-5000.0,0.005,120]
[354364089,1740447040404,-5063.84615584,0.0053,120]
[354364090,1740447040414,-4648.93996273,0.00532406,120]
[354364091,1740447040423,-7061.6898688,0.0054,120]
[354364092,1740447040433,-12286.0804718,0.0059999,120]
[354364093,1740447040442,-203.55775264,0.0059999,120]
[354364094,1740447040452,-3557.93,0.0059999,120]
[354364095,1740447040461,-2965.07,0.0059999,120]
[354364096,1740447040470,-5000.0,0.006,120]
[354364097,1740447040480,-2000.0,0.006,120]
[354364098,1740447040489,-5000.0,0.006,120]
[354364099,1740447040499,-1496.872162,0.0064,120]
[354364100,1740447040508,-627.24,0.00684931,120]
[354364101,1740447040517,-627.24,0.00684931,120]
[354364102,1740447040527,-627.24,0.00684931,120]
[354364103,1740447040536,-627.24,0.00684931,120]
[354364104,1740447040546,-627.24,0.00684931,120]
[354364105,1740447040555,-627.24,0.00684931,120]
[354364106,1740447040565,-627.24,0.00684931,120]
[354364107,1740447040575,-627.24,0.00684931,120]
[354364108,1740447040584,-627.24,0.00684931,120]
[354364109,1740447040593,-627.24,0.00684931,120]
[354364110,1740447040603,-53.54489737,0.00684931,120]
[354364111,1740447040615,-573.69510263,0.00684931,120]
[354364112,1740447040625,-627.24,0.00684931,120]
[354364113,1740447040635,-627.24,0.00684931,120]
[354364114,1740447040645,-627.24,0.00684931,120]
[354364115,1740447040655,-627.24,0.00684931,120]
[354364116,1740447040664,-627.24,0.00684931,120]
[354364117,1740447040673,-627.24,0.00684931,120]
[354364118,1740447040682,-627.24,0.00684931,120]
[354364119,1740447040692,-627.24,0.00684931,120]
[354364120,1740447040701,-627.24,0.00684931,120]
[354364121,1740447040711,-627.24,0.00684931,120]
[354364122,1740447040720,-627.24,0.00684931,120]
[354364123,1740447040730,-627.24,0.00684931,120]
[354364124,1740447040740,-617.44970563,0.00684931,120]
[354364125,1740447040752,-9.88403366,0.00684931,120]
[354364126,1740447040761,-2047.68007865,0.00695845,120]
[354364127,1740447040772,-1000.0,0.007,120]
[354364128,1740447040782,-5000.0,0.007,120]
[354364129,1740447040791,-5687.37776227,0.00737,120]
[354364130,1740447040804,-4312.62223773,0.00737,120]
[354364131,1740447040813,-1000.0,0.00749,120]
[354364132,1740447040827,-2000.0,0.0075,120]
[354364133,1740447040836,-1000.0,0.008,120]
[354364134,1740447040846,-1516.15330337,0.008,5]
[354364135,1740447040855,-1594.57,0.008,120]
[354364136,1740447040865,-5000.0,0.008,120]
[354364137,1740447040876,-1152.41067,0.00801,120]
[354364138,1740447040885,-151.19763648,0.0081836,120]
[354364139,1740447040895,-5025.37576362,0.0082,120]
[354364140,1740447040905,-1000.0,0.00878,120]
[354364141,1740447040915,-12286.0804718,0.0087998,120]
[354364142,1740447040924,-203.55775264,0.0087998,120]
[354364143,1740447040934,-1000.0,0.0088,120]
[354364144,1740447040943,-4459.13888594,0.0088,120]
[354364145,1740447040953,-2000.0,0.00889,120]
[354364146,1740447040962,-1000.0,0.009,120]
[354364147,1740447040971,-150.0,0.0091,120]
[354364148,1740447040981,-150.0,0.0095,120]
[354364149,1740447040990,-623.01,0.00958904,120]
[354364150,1740447041000,-623.01,0.00958904,120]
[354364151,1740447041009,-623.01,0.00958904,120]
[354364152,1740447041018,-623.01,0.00958904,120]
[354364153,1740447041028,-623.01,0.00958904,120]
[354364154,1740447041037,-623.01,0.00958904,120]
[354364155,1740447041155,-623.01,0.00958904,120]
[354364156,1740447041165,-623.01,0.00958904,120]
[354364157,1740447041175,-623.01,0.00958904,120]
[354364158,1740447041186,-623.01,0.00958904,120]
[354364159,1740447041196,-623.01,0.00958904,120]
[354364160,1740447041206,-623.01,0.00958904,120]
[354364161,1740447041218,-623.01,0.00958904,120]
[354364162,1740447041228,-623.01,0.00958904,120]
[354364163,1740447041238,-623.01,0.00958904,120]
[354364164,1740447041248,-623.01,0.00958904,120]
[354364165,1740447041257,-623.01,0.00958904,120]
[354364166,1740447041267,-623.01,0.00958904,120]
[354364167,1740447041277,-623.01,0.00958904,120]
[354364168,1740447041287,-623.01,0.00958904,120]
[354364169,1740447041296,-623.01,0.00958904,120]
[354364170,1740447041306,-623.01,0.00958904,120]
[354364171,1740447041315,-623.01,0.00958904,120]
[354364172,1740447041324,-623.12133206,0.00958904,120]
[354364173,1740447041334,-153.56,0.00958904,30]
[354364174,1740447041343,-1000.0,0.0098,120]
[354364175,1740447041353,-5999.0,0.00989,120]
[354364176,1740447041362,-2047.68007865,0.00995922,120]
[354364177,1740447041373,-150.0,0.01,120]
[354364178,1740447041383,-150.0,0.0101,120]
[354364179,1740447041392,-2470.89,0.0102156,120]
[354364180,1740447041401,-4648.93996273,0.01021571,120]
[354364181,1740447041410,-3469.1550656,0.01077854,120]
[354364182,1740447041419,-980.0,0.01089,120]
[354364183,1740447041429,-499.8,0.01155383,120]
[354364184,1740447041438,-500.0,0.01155383,120]
[354364185,1740447041447,-502.00530241,0.011784,120]
[354364186,1740447041457,-2000.0,0.0118,120]
[354364187,1740447041466,-1111.0,0.01189,120]
[354364188,1740447041475,-502.0,0.0119,120]
[354364189,1740447041485,-540.18000018,0.0119,120]
[354364190,1740447041494,-150.0,0.012,120]
[354364191,1740447041503,-1000.0,0.0129,120]
[354364192,1740447041513,-1000.0,0.0139,120]
[354364193,1740447041523,-150.0,0.014,120]
[354364194,1740447041532,-1000.0,0.0149,120]
[354364195,1740447041542,-754.0,0.0149,120]
[354364196,1740447041551,-2047.68007865,0.01495947,120]
[354364197,1740447041562,-4648.93996273,0.01510735,120]
[354364198,1740447041571,-1000.0,0.0159,120]
[354364199,1740447041580,-150.0,0.016,120]
[354364200,1740447041589,-341.4550636,0.01632318,120]
[354364201,1740447041598,-1258.20809241,0.016578,120]
[354364202,1740447041608,-1000.0,0.0169,120]
[354364203,1740447041626,-159.43571007,0.01717397,120]
[354364204,1740447041641,-159.43571007,0.01740247,120]
[354364205,1740447041652,-159.43571007,0.01763068,120]
[354364206,1740447041662,-12286.0804718,0.01785908,120]
[354364207,1740447041672,-203.55775264,0.01785908,120]
[354364208,1740447041681,-159.43571007,0.01785918,120]
[354364209,1740447041691,-1000.0,0.0179,120]
[354364210,1740447041701,-150.0,0.018,120]
[354364211,1740447041711,-1000.0,0.0189,120]
[354364212,1740447041722,-2000.0,0.0198,120]
[354364213,1740447041732,-10000.0,0.0199,120]
[354364214,1740447041743,-2047.68007865,0.01996213,120]
[354364215,1740447041753,-4648.93996273,0.019999,120]
[354364216,1740447041763,-316.84576273,0.01999999,120]
[354364217,1740447041773,-25000.0,0.02,120]
[354364218,1740447041783,-150.0,0.02,120]
[354364219,1740447041793,-2000.0,0.0209,120]
[354364220,1740447041803,-150.0,0.021,120]
[354364221,1740447041813,-2000.0,0.0219,120]
[354364222,1740447041827,-150.0,0.022,120]
[354364223,1740447041836,-150.0,0.022,120]
[354364224,1740447041846,-2000.0,0.0229,120]
[354364225,1740447041856,-2000.0,0.0239,120]
[354364226,1740447041866,-500000.0,0.023997,120]
[354364227,1740447041877,-25000.0,0.024,120]
[354364228,1740447041887,-150.0,0.024,120]
[354364229,1740447041898,-150.0,0.024,120]
[354364230,1740447041908,-4444.0,0.0245,120]
[354364231,1740447041918,-1939.640001,0.0245,120]
[354364232,1740447041927,-12286.0804718,0.02465643,120]
[354364233,1740447041937,-203.55775264,0.02465643,120]
[354364234,1740447041947,-38984.91922843,0.02465653,120]
[354364235,1740447041956,-24572.1609436,0.02465743,120]
[354364236,1740447041966,-407.11550528,0.02465743,120]
[354364237,1740447041975,-499.0,0.02465753,120]
[354364238,1740447041985,-37269.92390479,0.02465753,120]
[354364239,1740447041995,-575.0,0.02465753,120]
[354364240,1740447042005,-575.0,0.02465753,120]
[354364241,1740447042015,-575.0,0.02465753,120]
[354364242,1740447042025,-575.0,0.02465753,120]
[354364243,1740447042036,-575.0,0.02465753,120]
[354364244,1740447042046,-575.0,0.02465753,120]
[354364245,1740447042055,-575.0,0.02465753,120]
[354364246,1740447042065,-575.0,0.02465753,120]
[354364247,1740447042075,-575.0,0.02465753,120]
[354364248,1740447042084,-575.0,0.02465753,120]
[354364249,1740447042094,-575.0,0.02465753,120]
[354364250,1740447042103,-575.0,0.02465753,120]
[354364251,1740447042113,-575.0,0.02465753,120]
[354364252,1740447042126,-575.0,0.02465753,120]
[354364253,1740447042135,-575.0,0.02465753,120]
[354364254,1740447042152,-575.0,0.02465753,120]
[354364255,1740447042167,-575.0,0.02465753,120]
[354364256,1740447042180,-575.0,0.02465753,120]
[354364257,1740447042193,-575.0,0.02465753,120]
[354364258,1740447042206,-575.0,0.02465753,120]
[354364259,1740447042219,-575.0,0.02465753,120]
[354364260,1740447042231,-575.0,0.02465753,120]
[354364261,1740447042242,-575.0,0.02465753,120]
[354364262,1740447042253,-575.0,0.02465753,120]
[354364263,1740447042267,-575.0,0.02465753,120]
[354364264,1740447042279,-575.0,0.02465753,120]
[354364265,1740447042292,-575.0,0.02465753,120]
[354364266,1740447042304,-575.0,0.02465753,120]
[354364267,1740447042315,-575.0,0.02465753,120]
[354364268,1740447042328,-575.0,0.02465753,120]
[354364269,1740447042340,-575.0,0.02465753,120]
[354364270,1740447042352,-575.0,0.02465753,120]
[354364271,1740447042364,-575.0,0.02465753,120]
[354364272,1740447042378,-575.0,0.02465753,120]
[354364273,1740447042390,-575.0,0.02465753,120]
[354364274,1740447042402,-575.0,0.02465753,120]
[354364275,1740447042414,-575.0,0.02465753,120]
[354364276,1740447042427,-575.0,0.02465753,120]
[354364277,1740447042439,-575.0,0.02465753,120]
[354364278,1740447042455,-575.0,0.02465753,120]
[354364279,1740447042467,-575.0,0.02465753,120]
[354364280,1740447042479,-575.0,0.02465753,120]
[354364281,1740447042490,-575.0,0.02465753,120]
[354364282,1740447042502,-575.0,0.02465753,120]
[354364283,1740447042513,-575.0,0.02465753,120]
[354364284,1740447042528,-575.0,0.02465753,120]
[354364285,1740447042540,-575.0,0.02465753,120]
[354364286,1740447042552,-575.0,0.02465753,120]
[354364288,1740447042565,-575.0,0.02465753,120]
[354364289,1740447042578,-575.0,0.02465753,120]
[354364290,1740447042591,-575.0,0.02465753,120]
[354364291,1740447042603,-575.0,0.02465753,120]
[354364292,1740447042615,-575.0,0.02465753,120]
[354364293,1740447042628,-575.0,0.02465753,120]
[354364294,1740447042639,-575.0,0.02465753,120]
[354364295,1740447042649,-575.0,0.02465753,120]
[354364296,1740447042660,-575.0,0.02465753,120]
[354364297,1740447042670,-575.0,0.02465753,120]
[354364298,1740447042682,-575.0,0.02465753,120]
[354364301,1740447042694,-575.0,0.02465753,120]
[354364302,1740447042705,-575.0,0.02465753,120]
[354364305,1740447042728,-575.0,0.02465753,120]
[354364308,1740447042740,-575.0,0.02465753,120]
[354364312,1740447042753,-575.0,0.02465753,120]
[354364317,1740447042765,-575.0,0.02465753,120]
[354364320,1740447042777,-575.0,0.02465753,120]
[354364325,1740447042789,-575.0,0.02465753,120]
[354364327,1740447042801,-575.0,0.02465753,120]
[354364330,1740447042814,-575.0,0.02465753,120]
[354364332,1740447042826,-575.0,0.02465753,120]
[354364334,1740447042839,-575.0,0.02465753,120]
[354364337,1740447042851,-575.0,0.02465753,120]
[354364339,1740447042864,-575.0,0.02465753,120]
[354364341,1740447042878,-575.0,0.02465753,120]
[354364342,1740447042891,-575.0,0.02465753,120]
[354364343,1740447042904,-575.0,0.02465753,120]
[354364344,1740447042915,-575.0,0.02465753,120]
[354364345,1740447042925,-575.0,0.02465753,120]
[354364346,1740447042936,-575.0,0.02465753,120]
[354364347,1740447042946,-575.0,0.02465753,120]
[354364349,1740447042956,-575.0,0.02465753,120]
[354364351,1740447042966,-575.0,0.02465753,120]
[354364353,1740447042977,-575.0,0.02465753,120]
[354364354,1740447042988,-575.0,0.02465753,120]
[354364355,1740447043000,-575.0,0.02465753,120]
[354364356,1740447043012,-575.0,0.02465753,120]
[354364357,1740447043025,-575.0,0.02465753,120]
[354364358,1740447043037,-575.0,0.02465753,120]
[354364359,1740447043049,-575.0,0.02465753,120]
[354364360,1740447043059,-575.0,0.02465753,120]
[354364361,1740447043068,-575.0,0.02465753,120]
[354364362,1740447043078,-575.0,0.02465753,120]
[354364363,1740447043089,-575.0,0.02465753,120]
[354364364,1740447043100,-575.0,0.02465753,120]
[354364365,1740447043111,-575.0,0.02465753,120]
[354364366,1740447043124,-575.0,0.02465753,120]
[354364368,1740447043137,-575.0,0.02465753,120]
[354364369,1740447043148,-1298.2,0.0247,60]
[354364371,1740447043159,-2000.0,0.0249,120]
[354364373,1740447043170,-2047.68007865,0.02492904,120]
[354364375,1740447043182,-2000.0,0.0259,120]
[354364377,1740447043193,-150.0,0.026,120]
[354364379,1740447043204,-150.0,0.026,120]
[354364381,1740447043216,-2000.0,0.0269,120]
[354364382,1740447043228,-12286.0804718,0.0274998,120]
[354364384,1740447043239,-203.55775264,0.0274998,120]
[354364385,1740447043251,-49144.3218872,0.0274999,120]
[354364387,1740447043263,-814.23101056,0.0274999,120]
[354364388,1740447043275,-213526.60182499,0.0275,120]
[354364389,1740447043286,-50000.0,0.02789,120]
[354364390,1740447043298,-150.0,0.028,120]
[354364391,1740447043311,-1298.2,0.028,60]
[354364392,1740447043324,-2000.0,0.0289,120]
[354364393,1740447043336,-1500.0,0.029,120]
[354364394,1740447043348,-2000.0,0.0298,120]
[354364395,1740447043493,-2000.0,0.0299,120]
[354364396,1740447043504,-2000.0,0.0309,120]
[354364397,1740447043514,-2000.0,0.0319,120]
[354364398,1740447043524,-151.0,0.03194,105]
[354364399,1740447043534,-500.0,0.0319763,120]
[354364400,1740447043543,-504.75668437,0.03200104,120]
[354364401,1740447043553,-500.0,0.03221535,120]
[354364402,1740447043563,-500.0,0.03236374,120]
[354364403,1740447043572,-500.0,0.03258106,120]
[354364404,1740447043582,-2000.0,0.0329,120]
[354364405,1740447043591,-500.0,0.03296497,120]
[354364406,1740447043601,-3000.0,0.03299,120]
[354364407,1740447043611,-999.17802245,0.03332999,120]
[354364408,1740447043623,-131.37995631,0.03333,120]
[354364409,1740447043632,-1298.2,0.0334,60]
[354364410,1740447043641,-2000.0,0.0339,120]
[354364411,1740447043651,-50000.0,0.03479,120]
[354364412,1740447043660,-4000.0,0.0348,120]
[354364413,1740447043669,-2000.0,0.0349,120]
[354364414,1740447043679,-12286.0804718,0.0351998,120]
[354364415,1740447043688,-203.55775264,0.0351998,120]
[354364416,1740447043697,-2653.54,0.0352,111]
[354364417,1740447043706,-151.0,0.03547,113]
[354364418,1740447043715,-2000.0,0.0359,120]
[354364419,1740447043725,-2000.0,0.0369,120]
[354364420,1740447043734,-151.0,0.037026,109]
[354364421,1740447043743,-1298.2,0.0371,60]
[354364422,1740447043752,-250.0,0.0374747,120]
[354364424,1740447043762,-2000.0,0.0379,120]
[354364426,1740447043771,-5555.0,0.038,120]
[354364428,1740447043781,-10000.0,0.038388,120]
[354364430,1740447043790,-12286.0804718,0.0383998,120]
[354364432,1740447043799,-203.55775264,0.0383998,120]
[354364434,1740447043809,-12286.0804718,0.0383999,120]
[354364436,1740447043819,-203.55775264,0.0383999,120]
[354364438,1740447043831,-203.55775264,0.0383999,120]
[354364440,1740447043841,-47000.0,0.0384,120]
[354364441,1740447043850,-217134.12653484,0.0384,120]
[354364442,1740447043921,-1026.06996512,0.0384,120]
[354364452,1740447137668,341.0,0.00044711,60]
[354364454,1740447340381,2133.0,0.00038759,120]
[354364456,1740447408630,235.377317,9.041e-05,2]
[354364459,1740447888401,-176.6829,0.00016,2]
[354364460,1740447888435,-175.14282837,0.00037243,2]
[354364461,1740447888467,-308.2144196,0.0004651,30]
[354364462,1740447888499,-310.0981331,0.0004651,30]
[354364463,1740447888528,-364.137518,0.0004651,30]
[354364464,1740447888557,-312.9009134,0.0004651,30]
[354364465,1740447888587,-1126.6612545,0.0004651,30]
[354364466,1740447888616,-500.0,0.00054785,7]
[354364467,1740447888646,-500.0,0.00054794,120]
[354364468,1740447888674,-500.0,0.00054794,120]
[354364469,1740447888704,-500.0,0.00054794,120]
[354364470,1740447888732,-505.83807675,0.00054794,120]
[354364471,1740447888764,-509.43382583,0.00054794,120]
[354364472,1740447888802,-508.32789291,0.00054794,120]
[354364473,1740447888840,-508.87134394,0.00054794,120]
[354364474,1740447888881,-519.66,0.00054794,120]
[354364475,1740447888923,-500.0,0.00054794,120]
[354364476,1740447888961,-500.0,0.00054794,120]
[354364477,1740447889001,-500.0,0.00054794,3]
[354364478,1740447889037,-516.81864781,0.00054794,120]
[354364479,1740447889076,-500.0,0.00054794,120]
[354364480,1740447889114,-500.0,0.00054794,120]
[354364481,1740447889152,-500.0,0.00054794,120]
[354364482,1740447889189,-500.0,0.00054794,120]
[354364483,1740447889226,-528.95963128,0.00054794,120]
[354364484,1740447889261,-522.25896118,0.00054794,120]
[354364485,1740447889298,-500.0,0.00054794,120]
[354364486,1740447889333,-515.28003,0.00054794,120]
[354364487,1740447889370,-517.10651201,0.00054794,120]
[354364488,1740447889407,-557.608019,0.00054794,120]
[354364489,1740447889443,-500.0,0.00054794,120]
[354364490,1740447889478,-507.44618146,0.00054794,120]
[354364491,1740447889510,-513.78418508,0.00054794,120]
[354364492,1740447889545,-155.65317444,0.00054794,120]
[354364493,1740447889580,-511.98845481,0.00054794,10]
[354364494,1740447889616,-512.83961624,0.00054794,120]
[354364495,1740447889652,-510.78667606,0.00054794,120]
[354364496,1740447889687,-500.0,0.00054794,120]
[354364497,1740447889723,-500.0,0.00054794,120]
[354364498,1740447889759,-519.16063841,0.00054794,120]
[354364499,1740447889797,-500.0,0.00054794,120]
[354364500,1740447889831,-519.45904617,0.00054794,120]
[354364501,1740447889865,-557.31166704,0.00054794,120]
[354364502,1740447889896,-513.12959903,0.00054794,120]
[354364503,1740447889929,-500.0,0.00054794,120]
[354364504,1740447889963,-500.0,0.00054794,120]
[354364505,1740447889998,-500.0,0.00054794,120]
[354364506,1740447890030,-512.32113877,0.00054794,120]
[354364507,1740447890064,-1211.95,0.00054794,7]
[354364508,1740447890106,-435.40283015,0.00054794,120]
[354364509,1740447890139,-500.0,0.00054794,120]
[354364510,1740447890171,-518.67033023,0.00054794,120]
[354364511,1740447890203,-500.0,0.00055067,120]
[354364512,1740447890231,-500.0,0.00055068,120]
[354364513,1740447890261,-500.0,0.00055068,120]
[354364514,1740447890440,-500.0,0.00055068,120]
[354364515,1740447890474,-519.66,0.00055068,120]
[354364516,1740447890506,-500.0,0.00055068,120]
[354364517,1740447890538,-500.0,0.00055068,120]
[354364518,1740447890571,-500.0,0.00055068,3]
[354364519,1740447890604,-500.0,0.00055068,120]
[354364520,1740447890633,-500.0,0.00055068,120]
[354364521,1740447890663,-500.0,0.00055068,120]
[354364522,1740447890691,-165.82834886,0.00055068,120]
[354364523,1740447890720,-500.0,0.00055068,120]
[354364524,1740447890747,-500.0,0.00055068,120]
[354364525,1740447890775,-359.73720531,0.00055068,120]
[354364526,1740447890804,-500.0,0.00055068,120]
[354364527,1740447890834,-500.0,0.00055068,120]
[354364528,1740447890865,-500.0,0.00055068,120]
[354364529,1740447890896,-500.0,0.00055068,120]